Cogmind - Beta 13 @@@ ROGUE MODE // 2024.07.20 @ 17:14:59 Player: saltine Result: Destroyed by S-27 Virus with Autogun Performance ------------- Evolutions (5) 2500 Regions Visited (12) 2400 Robots Destroyed (101) 505 Value Destroyed (3529) 3529 Prototype IDs (2) 40 Alien Tech Used (0) 0 Bonus (923) 923 TOTAL SCORE: 9897 Bonus ------- High Alert Combat Kills 86 Follower Combat Kills 137 Entered Garrisons 200 Used RIF Installer 500 Cogmind --------- Core Integrity 0/1000 Matter 300/300 Energy 98/100 System Corruption 0% Temperature Cool (0) Movement Core (50) Location -5/Upper Caves Parts ------- > --- POWER (2) -------- (None) > --- PROPULSION (6) --- (None) > --- UTILITY (7) ------ (None) > --- WEAPON (2) ------- (None) > --- INVENTORY (5) ---- Improved EM Pulse Cannon EM Surge Trap EM Surge Trap EM Surge Trap EM Surge Trap Peak State ------------ > --- POWER ------------ Deuterium Engine Improved Deuterium Engine > --- PROPULSION ------- Armored Wheel Armored Wheel Armored Huge Wheel > --- UTILITY ---------- Advanced Heat Sink Large Storage Unit Visual Processing Unit Targeting Computer Transmission Jammer > --- WEAPON ----------- Particle Gun Heavy Particle Cannon > --- INVENTORY -------- Light Nuclear Core Wheel Armored Wheel Armored Wheel Compact Matter Pod Improved Targeting Computer Improved Targeting Computer Heavy Armor Plating Lightning Gun Arc Projector EM Pulse Cannon Improved EM Pulse Cannon Rocket Launcher Mini Grenade Launcher [Rating: 41] Favorites ----------- Power Light Nuclear Core Engine Deuterium Engine Power Core Light Nuclear Core Propulsion Light Treads Treads Light Treads Leg Aluminum Leg Wheel Wheel Flight Unit VTOL Module Utility Visual Processing Unit Device Improved Heat Sink Storage Cargo Storage Unit Processor Visual Processing Unit Protection Light Armor Plating Weapon Heavy Assault Rifle Energy Gun Particle Gun Energy Cannon Heavy Particle Cannon Ballistic Gun Heavy Assault Rifle Ballistic Cannon Gauss Cannon Launcher Mini Grenade Launcher Build | -11 -10 -9 -8 -7 -7 -7 -6 -6 -6 -5 -5 -5 ------- Run | Yrd Mat Mat Mat Fac Low Low Fac Gar Ext Fac Upp Upp Slots Evolved 10 | . . 2 2 2 . . 2 . . 2 . . Power 1 | . . . . 1 . . . . . . . . Propulsion 4 | . . 1 1 . . . 1 . . 1 . . Utility 5 | . . 1 1 1 . . 1 . . 1 . . Weapon . | . . . . . . . . . . . . . Parts Attached 101 | 3 2 12 27 33 7 . . 12 2 1 . 2 Power 10 | . . 1 3 5 . . . 1 . . . . Engine 5 | . . . 2 3 . . . . . . . . Core 5 | . . 1 1 2 . . . 1 . . . . Reactor . | . . . . . . . . . . . . . Propulsion 51 | 2 . 3 13 14 6 . . 9 1 1 . 2 Treads 16 | 2 . 1 7 1 2 . . . 1 1 . 1 Leg . | . . . . . . . . . . . . . Wheel 28 | . . 2 6 13 4 . . 2 . . . 1 Hover . | . . . . . . . . . . . . . Flight 7 | . . . . . . . . 7 . . . . Utility 20 | . 2 4 6 6 . . . 1 1 . . . Device 8 | . 1 1 2 4 . . . . . . . . Storage 3 | . 1 1 . 1 . . . . . . . . Processor 4 | . . . 2 . . . . 1 1 . . . Hackware . | . . . . . . . . . . . . . Protection 5 | . . 2 2 1 . . . . . . . . Artifact . | . . . . . . . . . . . . . Weapon 20 | 1 . 4 5 8 1 . . 1 . . . . Energy Gun 8 | . . 2 1 5 . . . . . . . . Energy Cannon 3 | . . . 2 . . . . 1 . . . . Ballistic Gun 5 | 1 . 2 2 . . . . . . . . . Ballistic Cannon 2 | . . . . 2 . . . . . . . . Launcher 2 | . . . . 1 1 . . . . . . . Special Weapon . | . . . . . . . . . . . . . Impact Weapon . | . . . . . . . . . . . . . Slashing Weapon . | . . . . . . . . . . . . . Piercing Weapon . | . . . . . . . . . . . . . Special Melee Weapon . | . . . . . . . . . . . . . Unidentified Prototypes . | . . . . . . . . . . . . . Parts Lost 86 | . . 7 20 19 12 . . 17 8 1 . 2 Power 10 | . . 1 3 4 1 . . . 1 . . . Propulsion 37 | . . 3 9 6 7 . . 5 4 1 . 2 Utility 15 | . . 1 4 3 2 . . 3 2 . . . Weapon 22 | . . 2 4 6 2 . . 7 1 . . . Highest Loss Streak 13 | . . 4 9 5 9 . . 13 7 1 . 2 To Critical Strikes 2 | . . . . . . . . 2 . . . . Average Slot Usage (%) 72 | . 99 87 90 80 72 46 40 47 24 4 . . Engine 3 | . 14 3 1 6 . . . . . . . . Core 4 | . . 7 7 3 5 . . 3 1 . . . Treads 11 | . 28 12 27 1 8 15 13 9 . 3 . . Wheel 11 | . . 11 3 24 19 7 6 7 . . . . Device 7 | . 13 12 8 9 5 . . . . . . . Storage 7 | . 14 11 9 7 7 7 6 4 . . . . Processor 6 | . . . 8 9 7 7 6 7 12 1 . . Protection 3 | . . 7 6 2 3 . . . . . . . Energy Gun 1 | . . 5 . 4 . . . . . . . . Energy Cannon 2 | . . . 4 3 . . . 4 2 . . . Ballistic Gun 6 | . 28 16 13 . . . . . . . . . Ballistic Cannon 2 | . . . . 4 10 . . . . . . . Naked Turns 481 | . . . . . . . . . . 27 346 108 Heaviest Build 188 | 13 19 35 42 188 164 141 141 153 13 . . . Greatest Support 89 | 40 40 60 89 52 52 16 16 26 16 30 3 3 Greatest Overweight (x) 15 | . . 1 2 4 8 8 8 15 . . . . Average Overweight (x) 1 | . . . . 2 4 8 8 2 . . . . Largest Inventory Capacity 30 | 8 10 15 15 30 30 30 30 30 5 5 5 5 Average Capacity 18 | 8 9 10 15 25 30 30 30 24 5 5 5 5 Most Carried 30 | 6 10 13 15 30 30 24 24 30 5 5 5 5 Average Carried 15 | 4 7 9 14 18 27 24 24 22 5 5 5 5 Final Capacity 30 | 8 10 15 15 30 30 30 30 5 5 5 5 5 Final Carried 30 | 4 10 13 15 30 24 24 24 5 5 5 5 5 Class Distribution -------------------- 37% | Hauler-Mutant 30% | Scavenger-Mutant 29% | Mutant Dominant Class ---------------- Mutant | -10/Materials Scavenger-Mutant | -9/Materials Scavenger-Mutant | -8/Materials Hauler-Mutant | -7/Factory Hauler-Mutant | -7/Lower Caves Hauler-Mutant | -7/Lower Caves Hauler-Mutant | -6/Factory Hauler-Mutant | -6/Garrison Mutant | -6/Extension Mutant | -5/Factory Mutant | -5/Upper Caves Mutant | -5/Upper Caves Resources | -11 -10 -9 -8 -7 -7 -7 -6 -6 -6 -5 -5 -5 ----------- Run | Yrd Mat Mat Mat Fac Low Low Fac Gar Ext Fac Upp Upp Matter Collected 2227 | 230 72 328 784 530 56 . . 180 37 . . 10 Remotely . | . . . . . . . . . . . . . Salvage Created 4219 | . 304 699 1534 1321 178 . . 183 . . . . Parts 242 | . 21 46 88 61 11 . . 15 . . . . Haulers Intercepted 2 | . 1 . 1 . . . . . . . . . Recyclers Shooed 8 | . . 5 . 3 . . . . . . . . Parts Field Recycled . | . . . . . . . . . . . . . Retrieved Matter . | . . . . . . . . . . . . . Parts Self-Destructed 10 | . . . . . 8 . . . . . 2 . Prevented 2 | . . . . . 2 . . . . . . . Kills | -11 -10 -9 -8 -7 -7 -7 -6 -6 -6 -5 -5 -5 ------- Run | Yrd Mat Mat Mat Fac Low Low Fac Gar Ext Fac Upp Upp Combat Hostiles Destroyed 84 | . 6 18 24 26 5 . . 5 . . . . Guns 43 | . 6 18 16 3 . . . . . . . . Cannons 30 | . . . 7 18 . . . 5 . . . . AOE 9 | . . . . 4 5 . . . . . . . Classes Destroyed 12 | . 2 4 4 2 . . . . . . . . Worker 2 | . . 1 . 1 . . . . . . . . Builder 6 | . . . 4 2 . . . . . . . . Hauler 2 | . 1 . 1 . . . . . . . . . Recycler 6 | . . . 2 4 . . . . . . . . Watcher 1 | . . . . 1 . . . . . . . . Swarmer 20 | . . 7 . 8 . . . 5 . . . . Grunt 40 | . 6 4 16 10 4 . . . . . . . Brawler 3 | . . 1 1 . 1 . . . . . . . Duelist 3 | . . . 1 2 . . . . . . . . Sentry 14 | . . 6 5 3 . . . . . . . . Hunter 1 | . . . 1 . . . . . . . . . Programmer 3 | . . . . 3 . . . . . . . . Best Kill Streak 6 | . 3 5 6 5 5 . . 3 . . . . Combat Bots Only 6 | . 2 5 6 4 5 . . 3 . . . . Max Kills in Single Turn 3 | . 1 2 2 3 2 . . 1 . . . . Gunslinging . | . . . . . . . . . . . . . Exploded 3 | . . . . 3 2 . . . . . . . Melee . | . . . . . . . . . . . . . Uniques/NPCs Destroyed . | . . . . . . . . . . . . . Combat | -11 -10 -9 -8 -7 -7 -7 -6 -6 -6 -5 -5 -5 -------- Run | Yrd Mat Mat Mat Fac Low Low Fac Gar Ext Fac Upp Upp Hostile Shots Fired 961 | . 16 131 187 231 96 . . 43 133 15 30 79 Missed 326 | . 4 47 46 75 25 . . 17 61 4 15 32 Damage Taken 9809 | . 134 950 2271 2359 1335 . . 384 956 284 321 815 Core 2815 | . 34 136 173 419 253 . . 45 747 130 321 557 Absorbed by Shields 71 | . . . . . . . . 20 51 . . . Core Remaining (%) 55 | 100 86 66 68 . . 4 . . 6 . . . Volleys Fired 312 | . 20 53 118 84 4 . . 33 . . . . Largest 2 | . 2 2 2 2 1 . . 1 . . . . Hottest 150 | . 40 79 150 150 30 . . 80 . . . . Shots Fired 566 | . 40 107 233 148 5 . . 33 . . . . Gun 350 | . 40 107 144 59 . . . . . . . . Cannon 206 | . . . 89 83 1 . . 33 . . . . Launcher 10 | . . . . 6 4 . . . . . . . Special . | . . . . . . . . . . . . . Kinetic 307 | . 40 75 142 49 1 . . . . . . . Thermal 219 | . . 32 91 63 . . . 33 . . . . Explosive 10 | . . . . 6 4 . . . . . . . Electromagnetic 30 | . . . . 30 . . . . . . . . Robot Hit Streak 14 | . 5 12 14 7 3 . . 14 . . . . Robot Miss Streak 8 | . 3 3 3 8 2 . . 2 . . . . Penetration Max . | . . . . . . . . . . . . . Secondary Targets 7 | . 2 3 2 . . . . . . . . . Max Gunslinging Chain 1 | . 1 1 1 . . . . . . . . . Shots Hit Robots 373 | . 20 76 156 96 3 . . 22 . . . . Core Hits 203 | . 15 34 62 68 10 . . 9 1 4 . . Critical Kills 3 | . . 1 1 1 . . . . . . . . Critical Parts Destroyed . | . . . . . . . . . . . . . Critical Strikes 12 | . . 6 1 5 . . . . . . . . Burn 6 | . . 5 . 1 . . . . . . . . Meltdown 2 | . . . 1 1 . . . . . . . . Destroy 1 | . . 1 . . . . . . . . . . Blast 2 | . . . . 2 . . . . . . . . Corrupt 1 | . . . . 1 . . . . . . . . Melee Attacks . | . . . . . . . . . . . . . Impact . | . . . . . . . . . . . . . Slashing . | . . . . . . . . . . . . . Piercing . | . . . . . . . . . . . . . Sneak Attacks . | . . . . . . . . . . . . . Combat Hostiles . | . . . . . . . . . . . . . Follow-up Attacks . | . . . . . . . . . . . . . Damage Inflicted 8662 | 3 247 1123 3145 3043 464 . . 562 20 55 . . Guns 3619 | . 247 1123 1605 644 . . . . . . . . Cannons 3410 | . . . 1525 1323 . . . 562 . . . . Explosions 1483 | . . . . 1019 464 . . . . . . . Melee . | . . . . . . . . . . . . . Ramming 150 | 3 . . 15 57 . . . . 20 55 . . Kinetic 3275 | . 247 743 1586 699 . . . . . . . . Thermal 3492 | . . 380 1544 1006 . . . 562 . . . . Explosive 1438 | . . . . 974 464 . . . . . . . Electromagnetic 307 | . . . . 307 . . . . . . . . Impact . | . . . . . . . . . . . . . Slashing . | . . . . . . . . . . . . . Piercing . | . . . . . . . . . . . . . Highest Corruption 10 | . . 2 10 5 9 9 . . . . . . Average Corruption 4 | . . 2 9 3 5 9 . . . . . . Corruption Purged . | . . . . . . . . . . . . . Corruption Blocked . | . . . . . . . . . . . . . Effects 59 | . . 4 11 28 16 . . . . . . . Message Errors 12 | . . . 2 5 5 . . . . . . . Matter Fused 16 | . . 2 4 8 2 . . . . . . . Heat Flow Errors 8 | . . 1 1 5 1 . . . . . . . Energy Discharges 7 | . . . . 4 3 . . . . . . . Parts Rejected 1 | . . . . 1 . . . . . . . . Parts Fused 1 | . . . . 1 . . . . . . . . Data Loss (minor) 6 | . . . 2 2 2 . . . . . . . Data Loss (major) 4 | . . . 1 1 2 . . . . . . . Misfires 2 | . . 1 . . 1 . . . . . . . Weapon Failures 2 | . . . 1 1 . . . . . . . . Overload Shots . | . . . . . . . . . . . . . Overflow Damage 108 | . . . 23 69 . . . 16 . . . . Projectiles 49 | . . . 23 10 . . . 16 . . . . Explosions 59 | . . . . 59 . . . . . . . . Melee . | . . . . . . . . . . . . . Knockbacks 17 | . . . . 16 . . . . 1 . . . Impact 1 | . . . . . . . . . 1 . . . Kinetic 15 | . . . . 15 . . . . . . . . Secondary 1 | . . . . 1 . . . . . . . . Self-Inflicted Damage 418 | . . . . 283 101 . . . 9 25 . . Shots 10 | . . . . 6 4 . . . . . . . Rammed 18 | 1 . . 2 1 . . . . 3 11 . . Targets Rammed 18 | 1 . . 2 1 . . . . 3 11 . . Kicked . | . . . . . . . . . . . . . Crushed . | . . . . . . . . . . . . . Highest Temperature 419 | . 12 292 302 419 211 . . 142 . . . . Average Temperature 84 | . 7 127 87 95 100 . . 39 . . . . Received Heat Transfer 3108 | . 75 261 1080 666 576 . . 27 198 18 144 63 Effects 7 | . . 1 1 5 . . . . . . . . Shutdowns 4 | . . . . 4 . . . . . . . . Energy Bleed 3 | . . 1 1 1 . . . . . . . . Siege Activations . | . . . . . . . . . . . . . Robots Corrupted . | . . . . . . . . . . . . . Combat Hostiles . | . . . . . . . . . . . . . Parts Fried 1 | . . . . 1 . . . . . . . . Impact Corruptions . | . . . . . . . . . . . . . Robots Melted 2 | . . . 1 1 . . . . . . . . Combat Hostiles 2 | . . . 1 1 . . . . . . . . Parts Melted 11 | . . 4 3 4 . . . . . . . . Heat Transferred 6552 | . . 1369 2294 1789 . . . 1100 . . . . Parts Sabotaged . | . . . . . . . . . . . . . Parts Stolen . | . . . . . . . . . . . . . Parts Stripped . | . . . . . . . . . . . . . Power Chain Reactions 1 | . . . . 1 . . . . . . . . Alert | -11 -10 -9 -8 -7 -7 -7 -6 -6 -6 -5 -5 -5 ------- Run | Yrd Mat Mat Mat Fac Low Low Fac Gar Ext Fac Upp Upp Peak Influence 506 | . 154 444 315 506 . . 62 170 209 152 . . Initial 149 | . . 65 149 130 . . 62 60 52 102 . . Average 227 | . 70 284 199 319 . . 62 99 113 121 . . Maximum Alert Level 2 | . . 2 1 2 . . . . 1 . . . Low Security (%) 44 | 100 100 24 51 9 . . 100 100 92 100 . . Level 1 44 | . . 62 48 63 . . . . 7 . . . Level 2 10 | . . 12 . 26 . . . . . . . . Level 3 . | . . . . . . . . . . . . . Level 4 . | . . . . . . . . . . . . . Level 5 . | . . . . . . . . . . . . . High Security . | . . . . . . . . . . . . . Max Security . | . . . . . . . . . . . . . Squads Dispatched 16 | . . . 4 10 . . . . 1 1 . . Investigation 5 | . . . 1 4 . . . . . . . . Extermination 2 | . . . . 2 . . . . . . . . Reinforcement 8 | . . . 3 3 . . . . 1 1 . . Assault 1 | . . . . 1 . . . . . . . . Garrison . | . . . . . . . . . . . . . Intercept . | . . . . . . . . . . . . . Searches Triggered . | . . . . . . . . . . . . . Construction Impeded 3 | . . . 1 . . . . . 1 1 . . Haulers Reinforced 1 | . . . . 1 . . . . . . . . Active Scanning Responses . | . . . . . . . . . . . . . Cargo Convoy Interrupts . | . . . . . . . . . . . . . Stealth | -11 -10 -9 -8 -7 -7 -7 -6 -6 -6 -5 -5 -5 --------- Run | Yrd Mat Mat Mat Fac Low Low Fac Gar Ext Fac Upp Upp Distress Signals 8 | . 2 . 2 1 . . . . 2 1 . . Communications Jammed 25 | . . . . 25 . . . . . . . . Distress Signals 24 | . . . . 24 . . . . . . . . Times Spotted 194 | . 9 24 39 51 11 . . 17 13 10 4 16 Peak Tracking Total 10 | . 3 8 6 5 5 . . 6 8 9 3 10 Tactical Retreats 14 | . . . 2 3 1 . . 1 4 1 . 2 Traps | -11 -10 -9 -8 -7 -7 -7 -6 -6 -6 -5 -5 -5 ------- Run | Yrd Mat Mat Mat Fac Low Low Fac Gar Ext Fac Upp Upp Traps Triggered 6 | . . . 1 1 1 . . 1 . 2 . . Indirectly . | . . . . . . . . . . . . . Trap Hack Attempts . | . . . . . . . . . . . . . Triggered . | . . . . . . . . . . . . . Disarmed 5 | . . . 5 . . . . . . . . . Reprogrammed . | . . . . . . . . . . . . . Reused . | . . . . . . . . . . . . . Traps Extracted . | . . . . . . . . . . . . . Installed . | . . . . . . . . . . . . . Triggered 3 | . . . . 1 2 . . . . . . . Most Traps Carried 7 | . . . . . . . . 7 4 4 4 4 Machines | -11 -10 -9 -8 -7 -7 -7 -6 -6 -6 -5 -5 -5 ---------- Run | Yrd Mat Mat Mat Fac Low Low Fac Gar Ext Fac Upp Upp Machines Disabled 7 | . . . 2 1 . . . 4 . . . . Max in Single Turn 1 | . . . 1 1 . . . 1 . . . . Garrison Access 1 | . . . . 1 . . . . . . . . Machines Repaired . | . . . . . . . . . . . . . Machines Dismantled . | . . . . . . . . . . . . . Machines Sabotaged . | . . . . . . . . . . . . . Overloaded Fab Kills . | . . . . . . . . . . . . . Hacking | -11 -10 -9 -8 -7 -7 -7 -6 -6 -6 -5 -5 -5 --------- Run | Yrd Mat Mat Mat Fac Low Low Fac Gar Ext Fac Upp Upp Machines Accessed 28 | . 4 3 5 11 . . 1 1 2 . 1 . Terminals 23 | . 4 3 5 7 . . . 1 2 . 1 . Fabricators 2 | . . . . 2 . . . . . . . . Repair Stations . | . . . . . . . . . . . . . Recycling Units 1 | . . . . 1 . . . . . . . . Scanalyzers . | . . . . . . . . . . . . . Garrison Access 2 | . . . . 1 . . 1 . . . . . Total Hacks 71 | . 9 11 15 26 . . 2 2 4 . 2 . Successful 29 | . 4 5 4 10 . . 1 1 2 . 2 . Failed 42 | . 5 6 11 16 . . 1 1 2 . . . Catastrophic 11 | . 1 . 2 7 . . 1 . . . . . Database Lockouts . | . . . . . . . . . . . . . Manual 27 | . 2 6 10 9 . . . . . . . . Terminals 59 | . 9 11 15 16 . . . 2 4 . 2 . Fabricators 5 | . . . . 5 . . . . . . . . Repair Stations . | . . . . . . . . . . . . . Recycling Units 2 | . . . . 2 . . . . . . . . Scanalyzers . | . . . . . . . . . . . . . Garrison Access 5 | . . . . 3 . . 2 . . . . . Terminal Hacks 23 | . 4 5 4 5 . . . 1 2 . 2 . Record 2 | . . . . . . . . . . . 2 . Part Schematic 2 | . 1 . 1 . . . . . . . . . Prototype ID Bank 1 | . 1 . . . . . . . . . . . Open Door 1 | . . . . . . . . . 1 . . . Branch Access Points 1 | . . . . 1 . . . . . . . . Emergency Access Points 2 | . . 1 . . . . . 1 . . . . Terminal Index 2 | . . 1 1 . . . . . . . . . Locate Traps 4 | . . 1 . 2 . . . . 1 . . . Disarm Traps 1 | . . . 1 . . . . . . . . . Dispatch Records 1 | . . 1 . . . . . . . . . . Maintenance Status 1 | . 1 . . . . . . . . . . . Recall Reinforcements 2 | . . . 1 1 . . . . . . . . Registered Components 2 | . 1 1 . . . . . . . . . . Zone Layout 1 | . . . . 1 . . . . . . . . Fabricator Hacks 4 | . . . . 4 . . . . . . . . Load Schematic 2 | . . . . 2 . . . . . . . . Build 2 | . . . . 2 . . . . . . . . Repair Station Hacks . | . . . . . . . . . . . . . Recycling Unit Hacks . | . . . . . . . . . . . . . Scanalyzer . | . . . . . . . . . . . . . Garrison Access Hacks 1 | . . . . . . . 1 . . . . . Unlock Access 1 | . . . . . . . 1 . . . . . Unauthorized Hacks 1 | . . . . 1 . . . . . . . . Terminals 1 | . . . . 1 . . . . . . . . Botnet 1 | . . . . 1 . . . . . . . . Fabricators . | . . . . . . . . . . . . . Repair Stations . | . . . . . . . . . . . . . Recycling Units . | . . . . . . . . . . . . . Scanalyzers . | . . . . . . . . . . . . . Garrison Access . | . . . . . . . . . . . . . Data Cores Recovered . | . . . . . . . . . . . . . Used . | . . . . . . . . . . . . . Hacking Detections 25 | . 4 3 5 10 . . 1 . 2 . . . Full Trace Events 3 | . . . . 3 . . . . . . . . Feedback Events . | . . . . . . . . . . . . . Feedback Blocked . | . . . . . . . . . . . . . Robot Schematics Acquired . | . . . . . . . . . . . . . Robots Built . | . . . . . . . . . . . . . Authchips . | . . . . . . . . . . . . . Time . | . . . . . . . . . . . . . Total Robot Build Rating . | . . . . . . . . . . . . . Part Schematics Acquired 2 | . 1 . 1 . . . . . . . . . Parts Built 2 | . . . . 2 . . . . . . . . Authchips . | . . . . . . . . . . . . . Time 98 | . . . . 98 . . . . . . . . Total Part Build Rating 4 | . . . . 4 . . . . . . . . Parts Repaired . | . . . . . . . . . . . . . Time . | . . . . . . . . . . . . . Parts Recycled . | . . . . . . . . . . . . . Recycled Matter . | . . . . . . . . . . . . . Retrieved Matter . | . . . . . . . . . . . . . Retrieved Components . | . . . . . . . . . . . . . Parts Scanalyzed . | . . . . . . . . . . . . . Part Schematics Acquired . | . . . . . . . . . . . . . Parts Damaged . | . . . . . . . . . . . . . Bothacking | -11 -10 -9 -8 -7 -7 -7 -6 -6 -6 -5 -5 -5 ------------ Run | Yrd Mat Mat Mat Fac Low Low Fac Gar Ext Fac Upp Upp Used RIF Installer 1 | . . . . . . . . 1 . . . . Robots Hacked . | . . . . . . . . . . . . . Non-combat . | . . . . . . . . . . . . . Combat . | . . . . . . . . . . . . . Robot Hacks Applied . | . . . . . . . . . . . . . Relay Couplers Released 1 | . . . . 1 . . . . . . . . Machine Destruction 1 | . . . . 1 . . . . . . . . Fabnet Peak Effective % . | . . . . . . . . . . . . . Robots Rewired 2 | . . . . . . . . . 1 1 . . Allies Hacked . | . . . . . . . . . . . . . Hacks Repelled . | . . . . . . . . . . . . . Allies | -11 -10 -9 -8 -7 -7 -7 -6 -6 -6 -5 -5 -5 -------- Run | Yrd Mat Mat Mat Fac Low Low Fac Gar Ext Fac Upp Upp Total Allies 3 | . . . . . . . . . 2 1 . . Largest Group 1 | . . . . . . . . . 1 1 1 . Highest-Rated Group 159 | . . . . . . . . . 159 152 49 . Highest-Rated Ally 159 | . . . . . . . . . 159 152 49 . Total Orders . | . . . . . . . . . . . . . Ally Attacks 19 | . . . . . . . . . 16 . 3 . Total Damage 565 | . . . . . . . . . 448 . 117 . Kills 5 | . . . . . . . . . 4 . 1 . Allies Corrupted . | . . . . . . . . . . . . . Allies Melted . | . . . . . . . . . . . . . Intel | -11 -10 -9 -8 -7 -7 -7 -6 -6 -6 -5 -5 -5 ------- Run | Yrd Mat Mat Mat Fac Low Low Fac Gar Ext Fac Upp Upp Robot Analysis Total . | . . . . . . . . . . . . . Derelict Logs Recovered 3 | . . . . . 1 . . . . . 2 . Drone Launches . | . . . . . . . . . . . . . Drone Recoveries . | . . . . . . . . . . . . . Exploration | -11 -10 -9 -8 -7 -7 -7 -6 -6 -6 -5 -5 -5 ------------- Run | Yrd Mat Mat Mat Fac Low Low Fac Gar Ext Fac Upp Upp Turns Passed 6100 | 20 383 594 1496 1805 506 75 71 420 177 72 346 135 Spaces Moved 4345 | 9 189 328 701 1174 304 35 32 292 375 95 547 264 Core 1073 | . . . . . . . . . 168 94 547 264 Treads 827 | 9 189 103 525 . . . . . . 1 . . Legs . | . . . . . . . . . . . . . Wheels 2076 | . . 225 176 1174 304 35 32 130 . . . . Hover . | . . . . . . . . . . . . . Flight 369 | . . . . . . . . 162 207 . . . Fastest Speed 23 | 160 160 90 90 86 120 220 220 23 26 50 50 50 Average Speed 107 | 160 160 115 148 121 159 220 220 97 37 51 50 50 Slowest Speed 305 | 160 160 160 160 150 220 220 220 305 50 160 50 50 Overloaded Moves . | . . . . . . . . . . . . . Propulsion Burnouts . | . . . . . . . . . . . . . Robots Hopped 9 | . . . . . . . . 5 4 . . . Cave-ins Triggered . | . . . . . . . . . . . . . Exploration Rate (%) 35 | 2 41 40 51 35 66 7 2 43 58 6 60 51 Regions Visited 12 Branch Regions 5 Pre-discovered Areas . | . . . . . . . . . . . . . Known Exits Taken 3 | . . . . 1 . . 1 . . 1 . . Unknown Exits Taken 8 | 1 1 1 1 . 1 1 . . 1 . 1 . Scrap Searched 4 | . . . . . 1 . . . . . 2 1 Spaces Dug . | . . . . . . . . . . . . . Terrain Destroyed 79 | . . . 19 49 11 . . . . . . . Melee . | . . . . . . . . . . . . . Projectile 32 | . . . 19 12 1 . . . . . . . AOE 47 | . . . . 37 10 . . . . . . . Terrain Rammed . | . . . . . . . . . . . . . Walls Destroyed . | . . . . . . . . . . . . . Machines Disabled . | . . . . . . . . . . . . . Actions | -11 -10 -9 -8 -7 -7 -7 -6 -6 -6 -5 -5 -5 --------- Run | Yrd Mat Mat Mat Fac Low Low Fac Gar Ext Fac Upp Upp Total 5202 | 14 233 440 925 1406 322 34 32 390 405 117 618 266 Wait 240 | . 16 23 34 55 . . . 17 23 . 72 . Move 4317 | 8 188 327 700 1173 303 34 32 281 367 94 546 264 Hop 7 | . . . . . . . . 4 3 . . . Pick Up 106 | . 6 15 28 40 4 . . 13 . . . . Fast Attach 39 | . 1 5 9 10 1 . . 8 2 1 . 2 Attach 47 | . . 5 16 18 6 . . 2 . . . . Detach 5 | . . . 2 3 . . . . . . . . Swap 15 | 3 1 2 2 5 . . . 2 . . . . Drop 64 | 2 1 10 14 17 4 . . 16 . . . . Fire 312 | . 20 53 118 84 4 . . 33 . . . . Melee . | . . . . . . . . . . . . . Ram 15 | . . . . 1 . . . . 3 11 . . Kick . | . . . . . . . . . . . . . Crush 3 | 1 . . 2 . . . . . . . . . Escape Stasis 14 | . . . . . . . . 14 . . . . Rewire 18 | . . . . . . . . . 7 11 . . Trap . | . . . . . . . . . . . . . Miscellaneous . | . . . . . . . . . . . . . Route ------- -11/Scrapyard -10/Materials -9/Materials (discovered 3 exits: *Mat / [*Min] / [*Sto]) -8/Materials (discovered 2 exits: *Fac x2) -7/Factory (discovered 3 exits: *Fac / *Low x2) -7/Lower Caves -7/Lower Caves -6/Factory -6/Garrison (discovered 2 exits: *Ext x2) -6/Extension (discovered 2 exits: [*Fac] / [*Cet]) -5/Factory -5/Upper Caves -5/Upper Caves History --------- Turn | Location | Event 6 | -11/Scrapyard | Discovered new exit (range 3) 21 | -11/Scrapyard | Entered Materials 304 | -10/Materials | Build established: Mutant 359 | -10/Materials | Discovered new exit (range 14) 404 | -10/Materials | Entered another Materials area 404 | -9/Materials | Evolved 2 slots: Propulsion x1, Utility x1 440 | -9/Materials | Discovered new exit (range 13) 621 | -9/Materials | Lost 4 parts (1p1n1u1w) 680 | -9/Materials | Discovered new exit (range 15) 741 | -9/Materials | Lost 3 parts (2n1w) 828 | -9/Materials | Build established: Scavenger-Mutant 919 | -9/Materials | Discovered new exit (range 16) 998 | -9/Materials | Entered another Materials area 998 | -8/Materials | Evolved 2 slots: Propulsion x1, Utility x1 1142 | -8/Materials | Lost 6 parts (1p2n2u1w) 1869 | -8/Materials | Discovered new exit (range 7) 2214 | -8/Materials | System corruption reached 10% 2262 | -8/Materials | Lost 9 parts (1p4n2u2w) 2298 | -8/Materials | Discovered new exit (range 17) 2494 | -8/Materials | Entered Factory 2494 | -7/Factory | Evolved 2 slots: Power x1, Utility x1 2966 | -7/Factory | Build established: Mutant 2996 | -7/Factory | Fabricated Cargo Storage Unit (x1) 3038 | -7/Factory | Discovered new exit (range 14) 3106 | -7/Factory | Lost 5 parts (1p1n2u1w) 3241 | -7/Factory | Lost 4 parts (1p2n1w) 3292 | -7/Factory | Build established: Hauler-Mutant 3614 | -7/Factory | Lost 4 parts (1n1u2w) 3887 | -7/Factory | Core integrity fell below 50% 4015 | -7/Factory | Fabricated Adv. Targeting Computer? 4083 | -7/Factory | Identified exit to Lower Caves 4299 | -7/Factory | Entered Lower Caves 4331 | -7/Lower Caves | Attracted the attention of an 0b10 outpost 4682 | -7/Lower Caves | Core integrity fell below 20% 4731 | -7/Lower Caves | Lost 9 parts (1p6n1u1w) 4777 | -7/Lower Caves | Discovered new exit (range 15) 4805 | -7/Lower Caves | Entered another Lower Caves area 4860 | -7/Lower Caves | Discovered new exit (range 10) 4880 | -7/Lower Caves | Entered Factory 4880 | -6/Factory | Evolved 2 slots: Propulsion x1, Utility x1 4951 | -6/Factory | Identified exit to Garrison 4951 | -6/Factory | Entered Garrison 5247 | -6/Garrison | Triggered checkpoint 5284 | -6/Garrison | Lost 3 parts (3n) 5340 | -6/Garrison | Discovered new exit (range 8) 5342 | -6/Garrison | Attempted to access garrison exit controls, blocked by remote lockdown 5345 | -6/Garrison | Lost 13 parts (1n3u7w) 5349 | -6/Garrison | Triggered checkpoint 5355 | -6/Garrison | Triggered checkpoint 5357 | -6/Garrison | Installed Relay Interface Framework 5369 | -6/Garrison | Discovered new exit (range 8) 5371 | -6/Garrison | Entered Extension 5435 | -6/Extension | Spotted B-75 Beast 5438 | -6/Extension | Spotted B-75 Beast 5452 | -6/Extension | Core integrity fell below 50% 5454 | -6/Extension | Rescued A7 5475 | -6/Extension | Lost 7 parts (1p4n1u1w) 5494 | -6/Extension | Core integrity fell below 20% 5526 | -6/Extension | Discovered new exit (range 17) 5527 | -6/Extension | Discovered new exit (range 17) 5548 | -6/Extension | Entered Factory 5548 | -5/Factory | Accompanied by 1 ally (A7) 5548 | -5/Factory | Evolved 2 slots: Propulsion x1, Utility x1 5549 | -5/Factory | Identified exit to Upper Caves 5620 | -5/Factory | Entered Upper Caves 5620 | -5/Upper Caves | Accompanied by 1 ally 5697 | -5/Upper Caves | Build established: Mutant 5794 | -5/Upper Caves | Learned Factory non-interactive machine intel 5925 | -5/Upper Caves | Attracted the attention of an 0b10 checkpoint 5962 | -5/Upper Caves | Discovered new exit (range 7) 5966 | -5/Upper Caves | Entered another Upper Caves area 5999 | -5/Upper Caves | Core integrity fell below 50% 6024 | -5/Upper Caves | Attracted the attention of an 0b10 checkpoint 6091 | -5/Upper Caves | Core integrity fell below 20% 6101 | -5/Upper Caves | Destroyed by S-27 Virus with Autogun Last Messages --------------- 05962_ EXIT=FOUND LOCATION=UNKNOWN GOAL=ESCAPE 06024_ Y-64 Sentinel: "INTERCEPTING UNREGISTERED DERELICT." 06030_ Penetrated by Slug. 06059_ Searching scrap... 06059_ Found Unknown Treads. 06059_ Found 16 Matter. 06060_ Acquired Unknown Treads. 06060_ Identified Spk. Medium Treads. 06063_ Acquired 1 matter. 06069_ Acquired 9 matter. 06070_ K6-ZKA(k) destroyed. 06070_ Acquired Wheel. 06077_ Wheel destroyed. 06082_ Penetrated by Slug. 06087_ Spk. Medium Treads destroyed. 06090_ Penetrated by Slug. 06095_ Slug penetrates Wall. 06098_ Penetrated by Slug. Map ----- +----------------------------------------------------+ | ???????????????????????????????????????# #????? | | ??????????????????????????????????????## *# ###### | | ??????????????????????????????????????# # # | | ????????????????????????????##????????# | | ???????????????????????????## ????????# ## | | ???????????????????????##?## ???????## ## | | ???????????????????????# ## ??????## # | | ???????????????????????# ?###??# | | ???????????????????????# ?# ##??# | | ????????????????????????# ## ##?## ## ## | | ?????????????????????????# ##?## ## ## | | ??????????????????????????# #### # | | ?????????????????????????## | | ????????????????????????## | | ????????????????????????# ### ### # | | ????????????????????????## #### ##?## | | ?????????????????????????## ### ##???## | | ??????????????????????????## ##????# | | ???????????????????????????## #???? | | ????????????????????????????# ### #???? | | ????????????????????????????# #?## #???? | | ??????????????????????#?????# #???##???? ## | | ?????????????????????## ????## #???????? ?? | | ?????????? ##### #????# *#?????????#?? | | ?????????? ###### #??????????????? | | ?????????? @ ### ##?????????????? | | ?????????? ## ##????????????? | | ?????????? ### ## ss #????????????? | | ???????????????????###??# #???????????? | | ????????????????????????# #???????????? | | ????????????????????? h #??????????? | | ??????????????????# #??????????? | | ??????????????????# #??????????? | | ??????????????????## h ##??????????? | | ???????????????????# ### ##???????????? | | ???????????????????# ??#### #????????????? | | ???????????????????# #?????# ????????????? | | ???????????????????# ??????## ???????????? | | ???????????????????## ????????## ###??????????? | | ?????????????????????####??????????##????????????? | | ?????????????????????????????????????????????????? | | ?????????????????????????????????????????????????? | | ?????????????????????????????????????????????????? | | ?????????????????????????????????????????????????? | | ?????????????????????????????????????????????????? | | ?????????????????????????????????????????????????? | | ?????????????????????????????????????????????????? | | ?????????????????????????????????????????????????? | | ?????????????????????????????????????????????????? | | ?????????????????????????????????????????????????? | +----------------------------------------------------+ Best States ------------- Heat Dissipation 53 Energy Generation 25 Energy Capacity 465 Matter Stores 300 Matter Capacity 300 Sight Range 18 Robot Scan Range 14 Terrain Scan Density 10 Jamming Range 12 Armor Coverage 150 Evasion (%) 65 Targeting Accuracy 8 Recoil Reduction 4 Item Schematics ----------------- Cargo Storage Unit | -10/Materials | Hacked Adv. Targeting Computer | -8/Materials | Hacked Robot Schematics ------------------ None Fabricated ------------ Cargo Storage Unit | x1 | -7/Factory Adv. Targeting Computer | x1 | -7/Factory Alien Tech Used ----------------- None Achievements -------------- Just What I Needed No Signal Packrat Challenges ------------ None Game ------ Seed LightpackComponentDetector Manual? 0 Play Time 01:35:56 Cumulative 78.9 hours Start 2024.07.20 @ 13:27:17 End 2024.07.20 @ 17:14:59 Sessions 3 Manual Loads 0 Difficulty Rogue Special Mode None Game No. 83 Rogue 83 Adventurer 0 Explorer 0 Win Type - Total 1 Types 1/0/0/0/0/0/0/0/0 Lore% 42 Gallery% 52 Achievement% 46 Wizard Run 0 Options --------- Layout 0 ASCII 0 Keyboard 0 Movement Arrows Keybinds 0 Fullscreen 2 Font 18/SmallcapsGlow Map View 76x50 Zoom Use 0% Tactical HUD 1 Map Filters NONE Filters NONE Steam 1 RUN: 2a498408-843f-4bc8-92a2-d804b9a2d25a